[Event "4NCL 2022-2023"]
[Site "Daventry"]
[Date "2023.03.18"]
[Round "7.15"]
[White "Camacho Collados, Jose"]
[Black "Kelmendi, Bajrush"]
[Result "1-0"]
[ECO "B06"]
[WhiteElo "2406"]
[BlackElo "1942"]
[Annotator "TA"]
[PlyCount "119"]
[EventDate "2022.10.20"]
[EventType "team-tourn"]
[EventCountry "ENG"]
[SourceTitle "playchess.com"]
[Source "ChessBase"]
[SourceQuality "1"]
[TimeControl "40/6000+30:2400+30"]

{[%evp 9,119,45,56,43,64,51,64,65,82,80,77,66,69,41,68,40,47,43,70,44,44,0,58,43,62,34,96,22,97,66,86,89,76,47,28,-65,-67,-100,-85,-84,-79,-85,-29,-29,-29,-29,-29,-84,-84,-175,-84,-86,-64,-180,-173,-251,-240,-347,-210,-484,-238,-787,-58,-58,-8,-8,-8,-9,-12,-85,-85,-85,-85,-92,10,14,15,15,29,22,23,23,24,23,125,112,163,159,163,163,163,163,163,149,217,216,1223,1233,1103,273,1897,1810,1222,1042,29969,29969,29971,29973,29991,29967,29990,29990]} 1. d4 {[%emt 0:00:02]} g6 {[%emt 0:01:35]} 2. Nf3 {[%emt 0:01:14]} Bg7 {[%emt 0:00:13]} 3. e4 {[%emt 0:00:24]} b6 {[%emt 0:00:12]} 4. c3 {[%emt 0:01:02]} Bb7 {[%emt 0:00:09]} 5. Bd3 {[%emt 0:00:06]} e6 {[%emt 0:00:06]} 6. O-O {[%emt 0:05:08] B06: Modern Defence.} Ne7 {[%emt 0:00:46]} 7. Re1 {[%emt 0:00:49] [#]} d5 $146 {[%emt 0:02:05]} ({Predecessor:} 7... d6 8. Nbd2 Nd7 9. a4 h6 10. a5 g5 11. Nf1 Ng6 12. Ng3 g4 13. a6 Bc8 {0-1 Bok,B (2624)-Andreikin,D (2724) Titled Tuesday intern op 15th Feb Late blitz 2022 (11)}) 8. e5 {[%emt 0:05:26] White is slightly better.} Nd7 {[%emt 0:00:37]} 9. a4 {[%emt 0:01:52]} a6 {[%emt 0:00:22]} 10. h3 {[%emt 0:08:22]} c5 {[%emt 0:00:34]} 11. b3 {[%emt 0:07:22]} Qc7 {[%emt 0:02:45]} 12. Bg5 {[%emt 0:05:54]} h6 {[%emt 0:04:16]} 13. Bh4 {[%emt 0:06:52]} Rc8 {[%emt 0:08:39]} 14. Na3 {[%emt 0:09:56] White is more active.} Nf5 {[%emt 0:01:46]} 15. Qe2 {[%emt 0:15:01]} Ra8 {[%emt 0:00:44]} (15... Nxh4 $11 16. Nxh4 Nb8) 16. Bxf5 $14 {[%emt 0:11:24]} gxf5 {[%emt 0:00:14]} 17. Rac1 {[%emt 0:00:20]} Bf8 {[%emt 0:00:50]} (17... O-O $14) 18. c4 {[%emt 0:04:24]} (18. Nc2 $16) 18... Be7 {[%emt 0:04:15]} (18... Rg8 $11 {keeps the balance.}) 19. b4 {[%emt 0:09:02]} Rc8 {[%emt 0:03:10]} 20. bxc5 {[%emt 0:07:28]} (20. cxd5 {keeps more tension.} Bxd5 21. Nc4 Qc6 22. b5) 20... bxc5 {[%emt 0:02:59]} 21. cxd5 {[%emt 0:02:59]} Bxd5 {[%emt 0:00:18]} 22. Qxa6 {[%emt 0:02:06]} (22. Bxe7 $11 Kxe7 23. dxc5 (23. Qxa6 Qc6 $11)) 22... Bxf3 $1 $15 {[%emt 0:06:51]} 23. Bxe7 {[%emt 0:02:02]} Rg8 $1 {[%emt 0:12:47]} 24. Re3 {[%emt 0:00:08]} Bxg2 {[%emt 0:01:51]} (24... Rxg2+ $6 25. Kf1 Nb8 26. Qb5+ Bc6 27. Qxc5 Qxe7 28. Qxe7+ Kxe7 29. Rxc6 Nxc6 30. Kxg2 $11) 25. Rg3 {[%emt 0:01:33]} Rxg3 {[%emt 0:00:46]} (25... Kxe7 $17 26. Kxg2 Ra8 {[%mdl 64] Skewer} 27. Qd6+ {[%mdl 64] Decoy} (27. Qb5 $2 Rxg3+ 28. Kxg3 Rb8 $19) 27... Qxd6 28. exd6+ Kxd6 29. Nc4+ Ke7 30. dxc5 Nxc5) 26. fxg3 $11 {[%emt 0:00:01]} Bb7 $36 {[%emt 0:11:40][%mdl 2048] Black is more active.} 27. Qd6 {[%emt 0:00:43]} Qxd6 {[%emt 0:01:02][%mdl 64] Remove Defender} 28. exd6 {[%emt 0:02:14]} (28. Bxd6 $11 cxd4 29. Rxc8+ Bxc8 30. Nb5) 28... cxd4 $17 {[%emt 0:00:19][%cal Bc5d4,Bd4d3][%mdl 32]} 29. Rxc8+ {[%emt 0:00:34]} Bxc8 $11 {[%emt 0:00:07][%mdl 4096] Endgame KBN-KBN} 30. Nb5 {[%emt 0:00:29][%cal Rb5c7]} Nc5 {[%emt 0:00:34]} 31. a5 {[%emt 0:00:30]} ({White should play} 31. d7+ $15 Nxd7 32. Bb4) 31... d3 $19 {[%emt 0:00:45]} 32. Kf2 {[%emt 0:00:26]} (32. d7+ $142 Nxd7 33. Bb4) 32... Kd7 {[%emt 0:00:32]} 33. Ke3 {[%emt 0:00:26]} (33. Nc3 $142) 33... e5 {[%emt 0:02:26]} 34. Bf8 $2 {[%emt 0:00:39]} (34. Nc3) 34... h5 {[%emt 0:01:20]} (34... f4+ $142 35. gxf4 exf4+ 36. Kf3 Bb7+ 37. Kxf4 d2) 35. Nc7 $2 {[%emt 0:00:29]} (35. Nc3) 35... e4 $2 {[%emt 0:01:56]} (35... h4 $19 36. gxh4 Bb7) 36. Nd5 $15 {[%emt 0:00:27] Black must now prevent Nb6+.} Bb7 {[%emt 0:01:05]} (36... Ba6 $15 37. Nf6+ Kc6) 37. Nf6+ $11 {[%emt 0:00:26]} Ke6 {[%emt 0:00:34]} 38. Nxh5 {[%emt 0:00:19]} Nb3 {[%emt 0:01:30][%cal Od3d2] ...d2! would be deadly.} 39. Ng7+ {[%emt 0:00:46]} (39. d7 $1 $11 Kxd7 40. Bb4) 39... Kd7 $17 {[%emt 0:01:38] ( -> ...d2)} 40. Nxf5 {[%emt 0:00:29]} Nxa5 {[%emt 0:00:56] Threatens to win with ...Nc4+.} 41. Kd4 {[%emt 0:05:15] Inhibits Nc4.} Nb3+ {[%emt 0:01:23]} ({Better is} 41... d2 $17 42. Ne3 Ba6 43. Kxe4 Be2) 42. Kc3 $11 {[%emt 0:05:04]} Nc5 {[%emt 0:02:06]} 43. h4 {[%emt 0:09:16]} Ke6 {[%emt 0:06:37]} 44. g4 {[%emt 0:03:08] Hoping for h5.} Nd7 {[%emt 0:06:04]} 45. Bg7 {[%emt 0:05:43] And now h5 would win.} f6 {[%emt 0:01:41]} 46. h5 {[%emt 0:01:43] h6 is the strong threat.} Kf7 {[%emt 0:00:29] [#]} (46... Ne5 $1 $11 {remains equal.}) 47. Bh6 $1 $16 {[%emt 0:01:42]} Bc8 {[%emt 0:12:43]} (47... Bc6 $16 {might work better.} 48. Be3 Ba4) 48. Ne7 {[%emt 0:04:42]} Bb7 {[%emt 0:00:13]} 49. Bf4 {[%emt 0:04:13]} Nf8 {[%emt 0:02:41]} 50. h6 {[%emt 0:02:53]} Ke6 {[%emt 0:02:14] [#]} 51. Nf5 $1 {[%emt 0:00:47]} Ba6 {[%emt 0:06:08]} (51... Kd7 $16 52. Bd2 Bd5) 52. Kd2 $18 {[%emt 0:01:23]} Ng6 $2 {[%emt 0:12:30] [#]} (52... Bc8 53. Ke3 Bb7) 53. h7 $1 {[%emt 0:00:25]} Nh8 {[%emt 0:03:19]} 54. Ke3 $2 {[%emt 0:00:24]} (54. Bh6 Nf7 55. Bg7) 54... Bb7 $2 {[%emt 0:00:54]} (54... Bc8 55. Nh6 (55. Kxe4 Kf7 $16) 55... Bd7) 55. Bh6 {[%emt 0:00:40]} Nf7 {[%emt 0:05:34]} 56. Bg7 {[%emt 0:00:18] Strongly threatening Nh6.} Bc8 {[%emt 0:02:09]} 57. Nh6 {[%emt 0:00:41] White mates.} Nxd6 {[%emt 0:05:18]} 58. h8=Q {[%emt 0:00:19]} (58. h8=R $2 {is the wrong capture.} Nc4+ 59. Kxe4 d2 60. Rxc8 (60. Re8+ $2 Kd7 $19) 60... Nd6+ 61. Ke3 d1=Q $19) 58... Bb7 {[%emt 0:00:13]} 59. Qg8+ {[%emt 0:00:21]} Ke5 {[%emt 0:00:32]} 60. Nf7+ {[%emt 0:00:14] Quite a comeback for White.   Weighted Error Value: White=0.40/Black=0.45} 1-0

[Event "4NCL 2022-2023"]
[Site "Daventry"]
[Date "2023.03.18"]
[Round "7.16"]
[White "Maciol, Ryszard"]
[Black "Navrotescu, Andreea"]
[Result "1/2-1/2"]
[ECO "D10"]
[WhiteElo "2136"]
[BlackElo "2258"]
[Annotator "TA"]
[PlyCount "141"]
[EventDate "2022.10.20"]
[EventType "team-tourn"]
[EventCountry "ENG"]
[SourceTitle "playchess.com"]
[Source "ChessBase"]
[SourceQuality "1"]
[TimeControl "40/6000+30:2400+30"]

{[%evp 17,141,18,18,13,21,8,25,22,22,21,26,18,35,20,63,61,94,89,91,85,136,139,222,210,204,209,385,182,272,278,269,275,272,269,263,265,252,261,259,247,240,217,278,271,470,470,480,472,470,471,458,315,324,332,337,332,407,393,414,404,391,376,393,397,385,385,389,373,412,380,405,372,385,384,388,385,381,364,439,318,431,411,397,382,362,322,340,325,325,311,318,254,269,73,189,179,184,184,243,218,303,302,405,409,400,364,303,0,0,0,0,-56,0,0,0,0,0,0,0,0,0,0,0,0,0,0]} 1. d4 {[%emt 0:00:35]} d5 {[%emt 0:00:05]} 2. c4 {[%emt 0:00:27]} c6 {[%emt 0:00:06]} 3. cxd5 {[%emt 0:00:15]} cxd5 {[%emt 0:00:06]} 4. Bf4 {[%emt 0:00:19]} Nf6 {[%emt 0:01:03]} 5. e3 {[%emt 0:02:57]} Nc6 {[%emt 0:00:58]} 6. Bd3 {[%emt 0:06:46]} a6 {[%emt 0:01:25]} 7. Nc3 {[%emt 0:00:49]} Bg4 {[%emt 0:00:11]} 8. Nge2 {[%emt 0:03:01]} e6 {[%emt 0:06:14]} 9. O-O {[%emt 0:08:41]} Bd6 {[%emt 0:01:57]} 10. Bxd6 {[%emt 0:15:46] D10: Slav Defence: 3 cxd5 (without early Nf3) and 3 Nc3.} Qxd6 {[%emt 0:00:08]} 11. Rc1 {[%emt 0:00:32]} Bxe2 {[%emt 0:04:37]} 12. Bxe2 {[%emt 0:02:10] White has an edge.} O-O {[%emt 0:02:35]} 13. Na4 {[%emt 0:03:25]} Nd7 {[%emt 0:05:42] [#]} 14. Qd2 $146 {[%emt 0:02:29]} ({Predecessor:} 14. Qb3 Na5 15. Qc3 Nc6 16. Qb3 Rab8 17. Nc5 Nxc5 18. Rxc5 {½-½ Gundavaa,B (2501)-Vitiugov,N (2742) Wch Blitz 8th 2014 (11)}) 14... Rfe8 {[%emt 0:26:28]} 15. a3 {[%emt 0:06:07]} e5 {[%emt 0:05:34]} 16. dxe5 {[%emt 0:02:03]} Rxe5 {[%emt 0:00:19]} 17. Rfd1 {[%emt 0:02:46]} Rd8 {[%emt 0:19:32]} 18. f4 {[%emt 0:10:48]} Re6 {[%emt 0:01:35]} (18... Ree8 $142) 19. Bg4 $16 {[%emt 0:07:43][%cal Od2d5,Be2g4,Bg4f5,Bf5e4][%mdl 32]} (19. Qxd5 $6 Qe7 $11) 19... Rg6 {[%emt 0:13:59]} (19... Ree8 $16) 20. Bf5 $18 {[%emt 0:04:46]} ({Don't take} 20. Qxd5 $6 Qxd5 21. Rxd5 Rxg4 $16) 20... Rh6 {[%emt 0:00:24]} 21. Qxd5 {[%emt 0:03:08]} Qe7 {[%emt 0:00:01] Black is weak on the light squares} (21... Nf8 22. Qb3 Qf6) 22. Qe4 {[%emt 0:07:04]} (22. Bxd7 $142 Qxe3+ 23. Kh1) 22... Nf8 {[%emt 0:00:57]} (22... Kf8 $142 23. Qxe7+ (23. Bxh7 g6 $11) 23... Kxe7) 23. Qxe7 {[%emt 0:02:22]} Rxd1+ {[%emt 0:00:02]} 24. Rxd1 {[%emt 0:00:32]} Nxe7 {[%emt 0:00:02]} 25. Be4 {[%emt 0:00:41]} b6 {[%emt 0:00:01]} 26. Rd8 {[%emt 0:03:04]} Re6 {[%emt 0:03:19]} 27. Nc3 {[%emt 0:02:15]} g6 {[%emt 0:00:45]} 28. Kf2 {[%emt 0:02:13]} Kg7 {[%emt 0:00:02]} 29. Bb7 {[%emt 0:03:47]} a5 {[%emt 0:02:20]} 30. Nb5 {[%emt 0:01:07]} g5 $2 {[%emt 0:07:23]} (30... Ng8 {was worth a try.} 31. Nc7 Re7) 31. Nc7 {[%emt 0:03:49]} (31. fxg5 Re5 $18) 31... Rh6 {[%emt 0:00:01]} 32. Ne8+ {[%emt 0:00:56]} ({Less strong is} 32. fxg5 Rxh2 33. Ne8+ Kg6 $18) 32... Kg8 {[%emt 0:00:22]} 33. fxg5 {[%emt 0:00:49]} Rxh2 {[%emt 0:00:10]} 34. Rd6 {[%emt 0:01:02]} Ne6 {[%emt 0:06:41]} 35. Rxb6 {[%emt 0:00:35]} Nxg5 {[%emt 0:00:43]} 36. Rb5 {[%emt 0:00:26][%csl LRa5,LRg5]} h6 {[%emt 0:00:45]} 37. Rxa5 {[%emt 0:00:21]} Rh1 {[%emt 0:00:14]} 38. b4 {[%emt 0:01:09]} Rb1 {[%emt 0:00:14]} 39. Nf6+ {[%emt 0:00:31]} Kg7 {[%emt 0:00:10]} 40. Nh5+ {[%emt 0:00:40]} Kg6 {[%emt 0:00:15]} 41. Nf4+ {[%emt 0:40:57]} Kg7 {[%emt 0:40:39]} 42. Nd3 {[%emt 0:00:00]} Ng8 {[%emt 0:00:00]} 43. Ke2 {[%emt 0:00:00]} Nf6 {[%emt 0:00:00]} 44. Nc5 {[%emt 0:00:00]} Ng4 {[%emt 0:00:00]} 45. Ne4 {[%emt 0:00:00]} Rb2+ {[%emt 0:00:00]} 46. Kd3 {[%emt 0:00:00]} Ne6 {[%emt 0:00:00]} 47. Ng3 {[%emt 0:00:00]} Kf6 {[%emt 0:00:00]} 48. Bd5 {[%emt 0:00:00] Against Rb3+} Nc7 {[%emt 0:00:00]} 49. Bf3 {[%emt 0:00:00]} Ne5+ {[%emt 0:00:00]} 50. Kc3 {[%emt 0:00:00]} Rb1 {[%emt 0:00:00]} 51. Nh5+ {[%emt 0:00:00]} Ke6 {[%emt 0:00:00]} 52. Kc2 {[%emt 0:01:01]} Ra1 {[%emt 0:00:00]} 53. Rc5 {[%emt 0:02:28]} Kd6 {[%emt 0:00:00]} 54. Kb3 {[%emt 0:00:55]} Re1 {[%emt 0:00:00]} 55. a4 $2 {[%emt 0:01:32]} (55. Ng3 $18 {And now Ne4+ would win.} Rxe3+ 56. Ka4) 55... Rxe3+ {[%emt 0:00:00]} (55... Rb1+ $16 {was necessary.} 56. Kc2 Rxb4) 56. Rc3 {[%emt 0:00:07]} Re1 {[%emt 0:00:00]} 57. b5 {[%emt 0:00:53]} Ne6 {[%emt 0:00:00]} (57... Rb1+ {might work better.} 58. Ka2 Rb4) 58. Ng3 {[%emt 0:00:38]} Nc5+ {[%emt 0:00:00]} 59. Kb4 {[%emt 0:00:09] [#] aiming for Nf5+.} Ned3+ {[%emt 0:00:00]} 60. Ka5 {[%emt 0:00:27][%cal Og3e4] Ne4+! would be deadly.} f5 {[%emt 0:00:00] Against Ne4+} 61. Nxf5+ {[%emt 0:01:23]} Ke5 {[%emt 0:00:00] [#]} 62. b6 $2 {[%emt 0:00:55]} Kxf5 $11 {[%emt 0:00:08]} 63. Kb5 {[%emt 0:00:17]} Rb1+ {[%emt 0:00:24]} 64. Kc4 {[%emt 0:01:04]} (64. Ka5 $11) 64... Nb2+ {[%emt 0:01:35]} (64... Rxb6 $15 65. Kd5 Ra6) 65. Kd5 {[%emt 0:00:31] The position is equal.} Nbxa4 {[%emt 0:09:50]} 66. Rxc5 {[%emt 0:00:05]} Nxc5 {[%emt 0:00:39]} 67. Kxc5 {[%emt 0:00:10] KR-KB} Ke6 {[%emt 0:00:33]} 68. Bg4+ {[%emt 0:00:51]} Ke7 {[%emt 0:00:08]} 69. Kc6 {[%emt 0:00:46]} Rc1+ {[%emt 0:00:11]} 70. Kd5 {[%emt 0:00:29]} Rb1 {[%emt 0:01:28]} 71. Kc6 {[%emt 0:00:42] Blacks defense is rewarded with a draw.   Weighted Error Value: White=0.23 (precise) /Black=0.33} 1/2-1/2

[Event "4NCL 2022-2023"]
[Site "Daventry"]
[Date "2023.03.18"]
[Round "7.17"]
[White "Erdos, Viktor"]
[Black "Alonso Rosell, Alvar"]
[Result "1/2-1/2"]
[ECO "C58"]
[WhiteElo "2587"]
[BlackElo "2567"]
[Annotator "TA"]
[PlyCount "52"]
[EventDate "2022.10.20"]
[EventType "team-tourn"]
[EventCountry "ENG"]
[SourceTitle "playchess.com"]
[Source "ChessBase"]
[SourceQuality "1"]
[TimeControl "40/6000+30:2400+30"]

{[%evp 14,39,24,19,31,31,33,15,21,18,20,34,22,33,22,0,0,7,23,17,0,27,0,0,35,27,37,49]} 1. e4 {[%emt 0:00:05]} e5 {[%emt 0:00:38]} 2. Nf3 {[%emt 0:00:06]} Nc6 {[%emt 0:00:04]} 3. Bc4 {[%emt 0:00:04]} Nf6 {[%emt 0:00:06]} 4. Ng5 {[%emt 0:00:04]} d5 {[%emt 0:00:07]} 5. exd5 {[%emt 0:00:04]} Na5 {[%emt 0:00:06]} 6. Bb5+ {[%emt 0:00:05]} c6 {[%emt 0:00:51]} 7. dxc6 {[%emt 0:00:05]} bxc6 {[%emt 0:00:02]} 8. Bd3 {[%emt 0:00:07]} Nd5 {[%emt 0:00:28] C58: Two Knights: 4 Ng5 d5 5 exd5 Na5 sidelines.} 9. Nf3 {[%emt 0:00:05]} (9. Qh5 g6 10. Nxf7 gxh5 $17) 9... Bd6 {[%emt 0:00:04]} 10. O-O {[%emt 0:00:13]} O-O {[%emt 0:00:15] The position is equal.} 11. Re1 {[%emt 0:00:09][%cal Oc2c3]} f5 {[%emt 0:00:06] The modern move.} 12. Nxe5 {[%emt 0:00:42] And now Bf1 would win.} Qf6 $1 {[%emt 0:00:04]} (12... Qh4 $2 13. Bf1 $18) 13. Nf3 {[%emt 0:00:07]} g5 $1 {[%emt 0:00:05]} 14. c4 {[%emt 0:00:07]} (14. g3 $5 {[%cal Rb1c3]}) 14... Nf4 {[%emt 0:00:28]} 15. Bf1 {[%emt 0:00:05] Hoping for d4.} g4 {[%emt 0:00:05][%cal Of4e6] [#]} 16. d4 $1 {[%emt 0:00:07][%cal Oc4c5] Strongly threatening c5!} gxf3 {[%emt 0:00:08]} 17. Qxf3 {[%emt 0:00:05]} Ne6 {[%emt 0:00:13]} ({Weaker is} 17... Qxd4 18. Rd1 $16) 18. Qc3 {[%emt 0:00:26]} Nxd4 {[%emt 0:00:55]} 19. c5 {[%emt 0:03:29][%cal Oc5d6]} Bc7 {[%emt 0:00:13]} 20. b4 {[%emt 0:07:56] [#]   Weighted Error Value: White=0.02 (flawless) /Black=0.06 (flawless)} {Predecessor:} Rb8 $146 21. bxa5 Be6 22. Bc4 Bxc4 23. Qxc4+ Rf7 24. Nd2 Rd8 25. Bb2 Qh4 26. Bxd4 Rxd4 {1-0 Erigaisi,A (2633)-Gupta,A (2628) IND-ch 58th Kanpur 2022 (6)} 1/2-1/2

[Event "4NCL 2022-2023"]
[Site "Daventry"]
[Date "2023.03.18"]
[Round "7.18"]
[White "Pert, Nicholas"]
[Black "Parligras, Mircea-Emilian"]
[Result "1/2-1/2"]
[ECO "D38"]
[WhiteElo "2544"]
[BlackElo "2570"]
[Annotator "TA"]
[PlyCount "37"]
[EventDate "2022.10.20"]
[EventType "team-tourn"]
[EventCountry "ENG"]
[SourceTitle "playchess.com"]
[Source "ChessBase"]
[SourceQuality "1"]
[TimeControl "40/6000+30:2400+30"]

{[%evp 11,37,5,20,1,41,5,11,20,24,31,15,17,22,8,14,20,26,23,22,23,12,20,36,30,28,1,5,27]} 1. d4 {[%emt 0:00:57]} Nf6 {[%emt 0:00:07]} 2. Nf3 {[%emt 0:00:08]} d5 {[%emt 0:00:10]} 3. c4 {[%emt 0:00:06]} e6 {[%emt 0:00:07]} 4. Nc3 {[%emt 0:00:04]} Bb4 {[%emt 0:00:12]} 5. Qa4+ {[%emt 0:00:38]} Nc6 {[%emt 0:00:11]} 6. e3 {[%emt 0:00:24]} O-O {[%emt 0:00:12]} 7. Qc2 {[%emt 0:00:37] D38: Queen's Gambit Declined: Ragozin Defence (4 Nf3 Bb4).} Qe7 {[%emt 0:00:32]} 8. Bd2 {[%emt 0:01:57]} dxc4 {[%emt 0:00:55]} 9. Bxc4 {[%emt 0:00:45]} e5 {[%emt 0:00:17]} 10. d5 {[%emt 0:01:30]} Qc5 {[%emt 0:00:24] [#]} 11. Na4 $146 {[%emt 0:02:36]} ({Predecessor:} 11. Ne4 Nxe4 12. Qxe4 Ne7 13. Nxe5 Bf5 14. Qf4 Bxd2+ 15. Kxd2 Qb4+ 16. Kc1 Qc5 17. g4 {0-1 Keymer,V (2664)-Aronian,L (2772) Berlin FIDE GP 1 Pool-C 2022 (5)}) 11... Bxd2+ {[%emt 0:00:24]} 12. Nxd2 {[%emt 0:00:33]} Nb4 {[%emt 0:00:12]} 13. Qb3 {[%emt 0:01:34]} Qd6 {[%emt 0:09:59][%cal Rb4d5]} 14. Nc3 {[%emt 0:01:04]} c6 {[%emt 0:02:42]} 15. dxc6 {[%emt 0:02:32]} Nxc6 {[%emt 0:00:23] [#]} 16. O-O $1 {[%emt 0:06:02]} Bf5 {[%emt 0:30:27]} (16... Na5 17. Qb5) 17. Rfd1 {[%emt 0:04:44]} Qe7 {[%emt 0:02:21]} 18. Nd5 {[%emt 0:25:34]} Nxd5 {[%emt 0:00:08]} 19. Bxd5 {[%emt 0:00:04] Weighted Error Value: White=0.08 (flawless) /Black=0.05 (flawless)} 1/2-1/2

[Event "4NCL 2022-2023"]
[Site "Daventry"]
[Date "2023.03.18"]
[Round "7.19"]
[White "Lupulescu, Constantin"]
[Black "Williams, Simon K"]
[Result "1/2-1/2"]
[ECO "E73"]
[WhiteElo "2592"]
[BlackElo "2465"]
[Annotator "TA"]
[PlyCount "102"]
[EventDate "2022.10.20"]
[EventType "team-tourn"]
[EventCountry "ENG"]
[SourceTitle "playchess.com"]
[Source "ChessBase"]
[SourceQuality "1"]
[TimeControl "40/6000+30:2400+30"]

{[%evp 13,102,49,44,35,47,49,43,35,42,36,43,51,71,58,92,91,98,53,79,83,75,69,92,95,87,85,99,85,132,88,83,20,25,10,88,25,31,0,0,0,0,0,11,0,46,50,59,61,93,73,106,97,128,45,45,-8,-8,-8,55,55,56,56,54,52,55,65,70,51,64,8,8,8,8,8,8,8,8,8,8,0,0,0,0,0,0,0,0,0,0,0,0]} 1. d4 {[%emt 0:00:02]} g6 {[%emt 0:02:03]} 2. e4 {[%emt 0:00:29]} Bg7 {[%emt 0:00:27]} 3. c4 {[%emt 0:00:27]} d6 {[%emt 0:00:39]} 4. Nc3 {[%emt 0:00:25]} Nf6 {[%emt 0:00:59]} 5. Be2 {[%emt 0:00:31]} O-O {[%emt 0:00:58]} 6. Be3 {[%emt 0:00:08]} c5 {[%emt 0:07:32]} 7. d5 {[%emt 0:00:06]} e6 {[%emt 0:03:23]} 8. Nf3 {[%emt 0:00:14] E73: King's Indian: Averbakh Variation without 6...c5.} exd5 {[%emt 0:00:21]} 9. cxd5 {[%emt 0:00:11]} Re8 {[%emt 0:14:38]} 10. Nd2 {[%emt 0:00:48] White is slightly better.} Na6 {[%emt 0:13:21]} 11. O-O {[%emt 0:01:09]} Nc7 {[%emt 0:00:04][%cal Ob7b5]} 12. a4 {[%emt 0:04:48]} a6 {[%emt 0:07:16]} 13. Bf4 {[%emt 0:13:15]} Rb8 {[%emt 0:08:56] [#]} 14. a5 $1 {[%emt 0:03:21]} Bf8 {[%emt 0:05:49] [#]} 15. Rb1 $146 {[%emt 0:23:58] White is more active.} ({Predecessor:} 15. Bf3 b5 16. axb6 Rxb6 17. Nc4 Rb4 18. b3 h6 19. h3 Nh7 20. Na2 Rb8 21. e5 {1-0 Predke,A (2688)-Ganerdene,S (2428) Paracin op-A 15th 2022 (3)}) 15... b5 {[%emt 0:06:06]} 16. axb6 {[%emt 0:13:25]} Rxb6 {[%emt 0:00:06]} 17. Nc4 {[%emt 0:00:28]} Rb4 {[%emt 0:00:17]} 18. f3 {[%emt 0:01:43]} Nh5 {[%emt 0:03:57]} 19. Be3 {[%emt 0:00:32]} f5 {[%emt 0:01:36]} 20. Qd2 {[%emt 0:06:36]} Bg7 {[%emt 0:05:31]} (20... Nb5 $142) 21. Bd3 {[%emt 0:03:58]} Nb5 {[%emt 0:06:12]} 22. Ne2 {[%emt 0:05:41]} ({White should play} 22. Bg5 $16 Bf6 23. Bxf6 Qxf6 24. Rf2) 22... a5 $11 {[%emt 0:04:12]} 23. Bg5 {[%emt 0:03:15]} Qc7 {[%emt 0:00:46]} (23... Bf6 $1 $11 {keeps the balance.} 24. Be3 a4) 24. exf5 {[%emt 0:01:14]} (24. b3 $16) 24... Bxf5 {[%emt 0:03:35]} 25. Bxf5 {[%emt 0:01:30]} gxf5 {[%emt 0:00:04]} 26. Qd3 {[%emt 0:03:19]} a4 {[%emt 0:03:18]} 27. Nc3 {[%emt 0:11:25]} Nd4 {[%emt 0:07:44]} 28. Rbe1 {[%emt 0:00:51]} Rbb8 {[%emt 0:00:14]} (28... Qd7 $11) 29. Nxa4 $14 {[%emt 0:00:54]} Rxe1 {[%emt 0:02:07]} 30. Rxe1 {[%emt 0:00:05] Hoping for Re7.} Qf7 {[%emt 0:00:12]} 31. Nc3 {[%emt 0:01:41]} (31. Nxd6 Qg6 32. Be7 Nf4 $19) 31... Qg6 {[%emt 0:00:12] [#]} 32. Bd2 {[%emt 0:02:06]} Kh8 {[%emt 0:01:33]} 33. Rf1 {[%emt 0:03:07]} (33. Kh1 $16) 33... Rg8 {[%emt 0:00:21]} 34. Rf2 {[%emt 0:01:27]} (34. g4 Bh6 35. Bxh6 Qxh6 $11) ({White should try} 34. f4 $14) 34... Bf6 $1 $11 {[%emt 0:00:05]} 35. g4 $1 $132 {[%emt 0:02:03][%mdl 2048] White is not holding back} (35. Nxd6 $2 Bh4 36. Re2 Nxe2+ 37. Qxe2 Qxd6 $19) 35... Nb3 {[%emt 0:02:33]} (35... Bh4 $11 36. Rg2 fxg4 {[%mdl 64] Discovered Attack} 37. Qxg6 Nxf3+ 38. Kh1 Rxg6) 36. Be3 $14 {[%emt 0:01:42] Rg2 is the strong threat.} ({Inferior is} 36. Nxd6 Nxd2 37. Rxd2 (37. Qxd2 $2 Bd4 $19) 37... Bd4+ 38. Kf1 Nf4 39. Qxf5 (39. Qa6 $2 fxg4 40. fxg4 Qxg4 $19) 39... Qxd6 $17) 36... fxg4 {[%emt 0:00:45]} 37. Qxg6 {[%emt 0:00:04]} Rxg6 {[%emt 0:00:05]} 38. Rg2 {[%emt 0:00:57]} (38. Nxd6 $2 {perishes.} gxf3+ 39. Kf1 Bxc3 40. bxc3 Rxd6 $19) 38... gxf3 {[%emt 0:00:52][%mdl 64] Pin} 39. Rxg6 {[%emt 0:00:05]} hxg6 {[%emt 0:00:02]} 40. Nxd6 {[%emt 0:00:29]} Kg7 {[%emt 0:00:59]} 41. Nb7 {[%emt 0:00:00]} (41. Nc4 $14) 41... Be5 $11 {[%emt 0:01:44] The position is equal.} 42. Kf2 {[%emt 0:12:57]} (42. Bxc5 $2 {is the wrong capture.} Nxc5 43. Nxc5 Bd4+ 44. Kf1 Bxc5 $19) 42... Nf6 {[%emt 0:02:59]} 43. Kxf3 {[%emt 0:01:42]} Bxh2 {[%emt 0:00:19]} 44. Bxc5 {[%emt 0:04:43]} (44. d6 $5 {[%cal Rc3a4]}) 44... Nxc5 {[%emt 0:05:19]} 45. Nxc5 {[%emt 0:00:13][%mdl 4096] Endgame KBN-KNN} Be5 {[%emt 0:00:09]} 46. N5a4 {[%emt 0:01:21]} Kf7 {[%emt 0:00:55]} 47. Nb6 {[%emt 0:01:02]} Ke7 {[%emt 0:01:20]} 48. Ke3 {[%emt 0:02:52]} g5 {[%emt 0:00:55]} 49. Nc4 {[%emt 0:00:38]} Bxc3 {[%emt 0:00:25]} 50. d6+ {[%emt 0:00:09]} Ke6 {[%emt 0:00:26]} 51. bxc3 {[%emt 0:00:05]} Ne8 {[%emt 0:00:18] Weighted Error Value: White=0.15 (very precise) /Black=0.15 (very precise)} 1/2-1/2